{"text_format":"1","workbook":"xlsx","n_sheets":3,"sheets":["Anlage 66","Anlage 33","Anlage 29"],"not_rendered":{"charts":0,"images":1,"macros":1,"external_links":1,"defined_names":3,"comments":0,"pivot_tables":0},"unopened":[],"bounds":{"document_bytes":16777216,"sheet_cells":100000,"rows_first":2000,"rows_last":500,"rows_between":2000,"halvings":0,"cell_chars":16384,"cell_head_chars":4096},"cells_cut":0,"cells_raw":0,"read":"whole","date_system":"1900"}

{"sheet":"Anlage 66","index":0,"n_rows":168,"n_cols":8,"rows_kept":168,"cut":false,"hidden":false,"merged":[[88,6,88,8],[89,6,89,8],[90,6,91,8],[80,6,80,8],[70,7,70,8],[71,7,71,8],[74,7,74,8],[77,7,77,8],[82,6,82,8],[83,0,83,3],[87,0,87,3],[111,6,111,8],[96,6,96,8],[104,6,104,8],[105,6,105,8],[97,6,97,8],[98,6,98,8],[87,6,87,8],[83,6,83,8],[84,6,84,8],[85,6,85,8],[86,6,86,8],[96,4,96,5],[98,4,98,5],[93,4,93,5],[92,6,92,8],[93,6,93,8],[95,0,99,3],[100,0,100,3],[95,6,95,8],[99,4,99,5],[92,0,93,3],[94,6,94,8],[157,6,157,8],[102,6,102,8],[136,0,137,2],[144,0,144,2],[144,6,144,8],[138,0,143,2],[117,0,117,1],[118,0,121,1],[108,6,108,8],[109,6,109,8],[110,6,110,8],[108,0,108,3],[114,0,115,8],[148,0,148,1],[133,0,133,4],[146,0,146,2],[103,6,103,8],[151,6,151,8],[102,0,103,3],[102,4,102,5],[64,7,64,8],[63,7,63,8],[66,0,66,3],[67,0,67,3],[79,0,79,3],[81,0,81,3],[68,7,68,8],[76,0,76,3],[77,0,77,2],[77,5,77,6],[66,7,66,8],[65,7,65,8],[67,7,67,8],[72,0,72,3],[72,7,72,8],[69,7,69,8],[79,6,79,8],[81,6,81,8],[69,0,69,3],[58,7,58,8],[58,5,58,6],[58,0,58,3],[53,6,53,8],[75,7,75,8],[73,7,73,8],[76,7,76,8],[74,0,74,3],[75,0,75,3],[71,0,71,3],[62,0,62,3],[64,0,64,3],[61,7,61,8],[59,0,59,3],[73,0,73,3],[70,0,70,3],[59,7,59,8],[60,7,60,8],[62,7,62,8],[60,0,60,3],[61,0,61,3],[63,0,63,3],[65,0,65,3],[68,0,68,3],[43,0,44,3],[45,6,45,8],[43,6,43,8],[41,6,41,8],[43,4,43,5],[27,0,29,3],[35,0,35,3],[30,0,34,3],[53,0,54,3],[48,6,48,8],[46,0,46,3],[48,0,48,3],[52,0,52,3],[49,0,50,3],[52,4,54,5],[51,6,51,8],[36,0,37,3],[0,0,0,3],[3,0,3,1],[0,5,4,8],[7,5,8,8],[8,0,8,4],[5,0,5,4],[6,0,7,4],[13,0,13,1],[9,5,10,8],[11,5,11,8],[12,5,12,8],[13,5,13,8],[12,2,12,4],[13,2,13,4],[9,0,9,4],[10,0,10,4],[5,5,5,8],[6,5,6,8],[1,0,2,2],[8,9,8,11],[18,6,18,8],[27,6,27,8],[29,6,29,8],[22,4,22,5],[24,4,24,5],[41,0,41,3],[24,0,24,3],[19,6,19,8],[21,6,21,8],[23,6,23,8],[25,6,25,8],[19,0,20,3],[26,0,26,3],[39,0,40,3],[17,3,17,7],[15,0,15,1],[14,0,14,1],[16,0,16,8],[14,5,14,6],[14,2,14,4],[15,2,15,4],[15,5,15,7]]}
["An den Direktor der Landwirtschaftskammer NRW als Landesbeauftrater über den\nGeschäftsführer der Kreisstelle als Landesbeauftragter im Kreise"]
[]
[]
["Antragstellerin/Antragsteller"]
[]
["Name, Vorname  \n",null,null,null,null,"Maßnahme AFP \n"]
[]
[null,null,null,null,null,"Anlage 66\nVersion für Bewilligungen ab 2023"]
["Straße, Hausnummer\nPLZ, Ort"]
[null,null,null,null,null,"Einhaltung der Viehbesatzdichte und der Tierobergrenzen "]
[]
[]
["Buchführungs-Abschlussstichtag",null,"Jahr der Antragstellung des Grundantrags",null,null,"Aktenzeichen"]
[null,null,null,null,null,"AFP-_______________-____-00___"]
["Datum Zuwendungsbescheid",null,"Datum Einreichung des \nSchlussverwendungsnachweises"]
[]
["Diese Anlage ist jährlich nach Vorlage des Schlussverwendungsnachweises vorzulegen. Die Vorlagepflicht gilt für 5 Jahre ab dem Datum der Bekanntgabe des Zuwendungsbescheides. Die Einhaltung des Viehbesatzes von 2,0 GVE je ha selbstbewirtschafteter landwirtschaftlich genutzter Fläche einschließlich Flächen in Betriebsverbünden (gem. 5.2.3 der AFP-Richtlinien) und die unteren Schwellenwerte der 4. BImSchV, Anhang 1, Nr. 7.1, Anlagenbeschreibung b, Verfahrensart V (gem. 5.2.4 d. AFP-Richtlinien) sind ab dem Zeitpunkt des Bewilligungsbescheides für mindestens 5 Jahre einzuhalten. Die Nachweispflicht beginnt ab dem Zeitpunkt der Vorlage des Schlussverwendungsnachweises. Der Nachweis erfolgt z.B. auf der Grundlage der Buchführung, des Nachweises Nährstoffanfalls aus der eigenen Tierhaltung, der HIT-Datenbank u.a. Unterlagen. Als Belegzeitraum gilt das jeweilige Wirtschaftsjahr des Betriebes (z.B. 1.7. – 30.6.). Es gilt das Wirtschaftsjahr, in welches der Schlussverwendungsnachweis fällt, als erster Belegzeitraum. "]
["Zugrunde liegendes Wirtschaftsjahr:",null,null,"20____ / 20____"]
[null,null,null,null,null,null,"Prüfvermerk Kreisstelle:"]
["1. Einhaltung der BImSchG Bestandsobergrenzen",null,null,null,null,null,"Nachweis erfolgt"]
[]
[null,null,null,null,null,null,"         geprüft"]
["Anlage 33 ",null,null,null,"     beigefügt"]
[null,null,null,null,null,null,"         in Ordnung"]
["     Viehbericht aus der Buchführung 1) 2)",null,null,null,"     beigefügt"]
[null,null,null,null,null,null,"         Beanstandung"]
["Die Tierzahlen zu 1  sind nachzuweisen:"]
["      1.    Für rinderhaltende Betriebe durch einen Auszug aus der HIT-\n            Datenbank für Rinder ",null,null,null,null,null,"         nicht prüfbar"]
[]
[null,null,null,null,null,null,"Bemerkung:"]
["2.     Durch Vorlage von Buchführungsabschlüssen für schweine-\n            /sauenhaltenden Betriebe oder Betrieben mit Legehennen- und \n            Masthähnchenhaltung bzw. Haltung sonstiger Tierrassen.\nEs müssen die Zahlen aus der Buchführung (Durchschnittsbestand), alternativ Stall-/Bestandbuch, Arzneimittelbuch o.ä., eingereicht u. nachgewiesen werden, um die Angaben zu plausibilisieren."]
[]
[]
[]
[]
[]
["       3.     Die GVE werden dann nach den u.a. Umrechnungsschlüsseln \n             ermittelt und insgesamt eingetragen."]
[]
[]
["       4.  Es muss in jedem Fall der Vordruck Anlage 33 beigefügt \n            werden. "]
[]
["2.  Einhaltung des Viehbesatzes von 2,0 GVE",null,null,null,null,null,"Nachweis erfolgt"]
[]
["a.)  Flächenverzeichnis für das jeweilige \n      Wirtschaftsjahr des Betriebes",null,null,null,"      beigefügt",null,"         geprüft"]
[]
[null,null,null,null,null,null,"         in Ordnung"]
["b.)  Fläche (lt. Flächenverzeichnis) ha"]
[null,null,null,null,null,"ha"]
["       Wirtschaftsjahr       ",null,null,null,null,null,"         Beanstandung"]
["          Bsp: WJ 2022/23: Bei Stichtag 30.04. Flächennachweis 2022, \n          Bsp: WJ 2022/23: bei Stichtag 30.06. Flächennachweis 2023."]
[]
[null,null,null,null,null,null,"         nicht prüfbar"]
["c.)  Ermittlung der GVE",null,null,null,"      Anlage\n      ausgefüllt"]
["Die Tierzahlen zu 2c sind nachzuweisen – siehe Kommentare Nr. 1",null,null,null,null,null,"Bemerkung:"]
[]
[]
[]
[]
["2 c.) Ermittlung der GVE",null,null,null,null,"Tier GVE",null,"Nicht ausfüllen"]
["Tierart",null,null,null,"GVE Schlüssel","Anzahl","GVE","Info / Prüfvermerk "]
["Rinder von 6 Monaten bis 2 Jahren",null,null,null,0.6,null,{"$f":"F61*E61","v":0}," s. HIT-DATENBANK"]
["Bullen, Kühe u. sonstige Rinder von mehr als 2 Jahren",null,null,null,1,null,0," s. HIT-DATENBANK"]
["Kälber / Mastkälber",null,null,null,0.4,null,0," s. HIT-DATENBANK"]
["Ferkel",null,null,null,2.7E-2,null,0]
["Mastschweine Läufer (20-50kg)",null,null,null,0.06,null,0]
["Mastschweine über 50kg",null,null,null,0.16,null,0]
["Zuchtsauen / Zuchteber",null,null,null,0.5,null,0]
["Sonstige Schweine (einschl. Jungsauen)",null,null,null,0.3,null,0]
["Legehennen",null,null,null,3.0000000000000001E-3,null,0]
["Mastputen",null,null,null,0.02,null,0]
["Masthähnchen ",null,null,null,2E-3,null,0]
["Sonstiges Geflügel",null,null,null,1.4E-2,null,0]
["Junghennen \n* nicht in AFP-Anlage 2 enthalten, errechneter Wert",null,null,null,1.2999999999999999E-3,null,0]
["Equiden bis 6 Monaten",null,null,null,0.5,null,0]
["Equiden ab 6 Monaten",null,null,null,1,null,0]
["Schafe \n*Lämmer nicht zu erfassen, zählen zu den Muttertieren dazu",null,null,null,0.15,null,0]
["Ziegen\n*Zicklein nicht zu erfassen, zählen zu den Muttertieren dazu",null,null,null,0.15,null,0]
["Gesamt GVE",null,null,null,null,{"$f":"SUM(G61:G77)","v":0}]
[]
["3.    Ergebnis",null,null,null,null,null," Nachweis erfolgt"]
[]
["a.    GVE laut Nr. 2 c",null,null,null,{"$f":"F78","v":0}," GVE","          geprüft"]
[]
["b.    Fläche laut Nr. 2a/b",null,null,null,{"$f":"E48","v":0}," ha","          in Ordnung"]
[]
[null,null,null,null,null,null,"          Beanstandung"]
[]
["c.    Ergebnis 3 a / b",null,null,null,{"$f":"IFERROR(E82/E84,0)","v":0},"GVE/ha","          nicht prüfbar"]
[]
[null,null,null,null,null,null," Bemerkung:"]
[]
[]
["4.    Gülleabgabe (nur ausfüllen, wenn Nr. 3c > \n      2,0 GVE /ha "]
[null,null,null,null,"       entfällt"]
[]
["      a.)  Nachweis tatsächliche Gülleabgabe durch\n           · Kopien Betriebsspiegel aus dem Melde-\n              programm für Wirtschaftsdünger; \n           · Lieferabgabescheine; \n           · Nährstoffanfall aus d. eigenen Tierhaltung *",null,null,null,null,null,"         geprüft"]
[null,null,null,null,"       beigefügt",null,"         in Ordnung"]
[null,null,null,null,null,null,"         Beanstandung"]
[null,null,null,null,"       beigefügt",null,"         nicht prüfbar"]
[null,null,null,null,"       beigefügt"]
["* Nachweis durch Ausdruck aus „NOG-Rechner“, alternativ geeignete Berechnung des Phosphatanfalls gemäß Düngeverordnung Anlage 1"]
[]
["      b.)  Anlage 29 – Nachweis der Anrechnung der\n           Abgabe der Wirtschaftsdünger",null,null,null,"       beigefügt",null,"         geprüft"]
[null,null,null,null,null,null,"         in Ordnung"]
[null,null,null,null,null,null,"         Beanstandung"]
[null,null,null,null,null,null,"         nicht prüfbar"]
[]
[]
["      c.)  GVE/ ha nach Gülleabgabe",null,null,null,null,"GVE/ha","         geprüft"]
[null,null,null,null,null,null,"         in Ordnung"]
[null,null,null,null,null,null,"         Beanstandung"]
[null,null,null,null,null,null,"         nicht prüfbar"]
[]
[]
["Hiermit bestätige ich die Richtigkeit der gemachten Angaben und vorgelegten Nachweise. Mir ist bekannt, dass die Vorlage falscher Unterlagen bzw. falsch gemachter Angaben zu einem Widerruf der Bewilligung führen kann."]
[]
[]
[]
["Ort, Datum",null,null,"Unterschrift"]
[]
[]
[]
["Nur von der Kreisstelle auszufüllen:"]
[]
["Prüfvermerk:                                 "]
["Bemerkungen:"]
[]
[]
[]
[]
[]
["Nachweise "]
[]
["Die eingereichten Nachweise sind ausreichend: Ja                      Nein"]
[]
[]
["Die Sichtprüfung ist erfolgt. Die Anlage wird zur \nErfassung freigegeben",null,null,"vollständig","plausibel","   gültig","Anlage im Invekos erfasst"]
[]
[]
[]
[]
[]
[]
[]
["Datum, Unterschrift der Prüferin / des Prüfers",null,null,null,null,null,"Datum, Unterschrift der Erfasserin / des Erfassers"]
[]
["Weitere Prüfung durch Zentrale erforderlich:"]
[]
["Begründung / Erläuterung"]
[]
[]
["Prüfung Zentrale",null,null,"vollständig","plausibel","   gültig","Anlage im Invekos erfasst"]
[]
[]
[]
[]
[]
[null,null,null,null,null,null,"Datum, Unterschrift der Erfasserin / des Erfassers"]
[]
[]
["Bemerkung:"]
[]
[]
[]
[]
[]
[]
["Anlage 66 - Version für AFP-Bewilligungen ab einschl. 2023"]

{"sheet":"Anlage 33","index":1,"n_rows":45,"n_cols":8,"rows_kept":45,"cut":false,"hidden":false,"merged":[[4,2,4,8],[7,4,7,6]]}
[]
[null,"Einhaltung der Bestandsobergrenzen beim AFP (gemäß Nr. 5.2.4 und 5.2.5 der Richtlinien)",null,null,null,null,null,"Anlage 33 zur Anlage 66 (2023)"]
[null,"(untere Schwellenwerte nach d. 4. BImSchV, Anhang 1, Nr. 7.1 Anlagenbeschreibung b, Verfahrensart V)"]
[]
[null,"Unternehmen:"]
[null,"Unt.nummer:"]
[]
[null,null,"Bestandsobergrenze","Bestand im WJ20____/_____","Ergebnis der Kreisstelle:"]
[]
[null,"Hennen",15000,null,"          Bestandsobergrenze eingehalten"]
[]
[null,"Junghennen",30000,null,"          Bestandsobergrenze nicht eingehalten"]
[]
[null,"Mastgeflügel",30000]
[]
[null,"Mast-Truthühner",15000]
[]
[null,"Rinder 1)",600]
[]
[null,"Kälber 2)",500]
[]
[null,"Mastschweine 5)",1500]
[]
[null,"Sauen 4) 6)",560]
[]
[null,"Ferkel 3) 6)",4500]
[]
[null,"Pelztiere",750]
[null,null,"Es handelt sich hierbei um die gekürzte Fassung der Anlage 33, die nur zum gleichzeitigen Einreichen "]
[null,null,"der Anlage 66 für Förderfälle mit Bewilligungen ab einschließlich 2023 bestimmt ist!"]
[]
[null,"1)","ausgenommen Plätze für Mutterkuhhaltung mit mehr als 6 Monaten Weidehaltung je Kalenderjahr"]
[null,"2)","sämtliche Kälber bis 6 Monate"]
[null,"3)","nur bei spezialisierter Aufzucht in gesonderter Anlage extra zu zählen (Ferkel bis weniger als 30 kg Lebendgewicht)"]
[null,"4)","einschließlich dazugehörender Ferkelaufzuchtplätze (Ferkel bis weniger als 30 kg Lebendgewicht)"]
[null,"5)","Ausnahmen nach Nummer 5.2.4 Absatz 2 der AFP-Richtlinien möglich "]
[null,null,"(Wenn Ausnahmefall vorliegend, bitte unter Ergebnis entsprechendes Kennzeichen setzen!)."]
[null,"6)","Ausnahmen nach Nummer 5.2.4 Absatz 2 der AFP-Richtlinien möglich "]
[null,null,"(Wenn Ausnahmefall vorliegend, bitte unter Ergebnis entsprechendes Kennzeichen setzen!)."]
[]
[null,null,"5) 6) Ausnahmeregelung nach Nr. 5.2.4, Absatz 2 zutreffend: "]
[null,null,"Umbaumaßnahmen in bestehenden Gebäuden ohne Aufstockung der Tierplätze"]
[null,null,"Neubau ohne Aufstockung der Tierplätze"]
[null,null,"Neubau mit zusätzlichem Auslauf, der Auslauf muss planbefestigt sein und mindestens folgende "]
[null,null,"Größen erreichen: für Mastschweine 0,4 m² je Tier, für Sauen (Warte- bzw. kombinierten Deck-Wartebereich) 1,3 m² je Tier."]

{"sheet":"Anlage 29","index":2,"n_rows":34,"n_cols":9,"rows_kept":34,"cut":false,"hidden":false,"merged":[[31,1,31,5],[26,3,26,4],[27,3,27,4],[21,1,21,3],[21,8,21,9],[22,1,22,3],[22,8,22,9],[23,1,23,3],[23,8,23,9],[20,1,20,3],[20,8,20,9],[0,0,0,6],[3,2,3,5],[5,2,5,3],[19,1,19,3],[19,8,19,9]]}
["Berechnung Viehbesatz - Anrechnung der Abgabe von Wirtschaftsdünger",null,null,null,null,null,null,"Anlage 29 zur Anlage 66 (2023)"]
["(zu Nr. 5.2.3 der anzuwendenden AFP-Richtlinien) "]
[]
["Unternehmer:"]
[]
["Unt.nummer:"]
[]
["1. Viehbesatz im Zieljahr (lt. Investitionskonzept / Anlage 66 Nr. 3c):",null,null,null,null,null,"GVE je ha LNF"]
[]
["2. zulässiger Viehbesatz nach der Nr. 5.2.3 d. anzuwendenden AFP-Richtlinien",null,null,null,null,2,"GVE je ha LNF"]
[]
["3. Anteil notwendige außerbetriebliche Verwertung",null,null,null,null,{"$f":"IF(F8>0,(F8-F10)/F8,\" \")","v":" "}]
[]
["4. P2O5-Anfall aus der eigenen Tierhaltung",null,null,null,null,null,"kg / Jahr"]
[]
["5. Notwendige außerbetriebliche Verwertung",null,null,null,null,{"$f":"IF(ISNUMBER(F12),SUM(F14*F12),\" \")","v":" "},"kg / Jahr"]
[]
["6. Vertraglich vereinbarte außerbetriebliche Verwertung:"]
[]
[null,"Vertragspartner",null,null,"Vertrag / Vermittlungsgarantie vom","Abgabemenge",null,null,"Nährstoffart"]
["6.1.",null,null,null,null,null,"kg / Jahr P2O5-Abgabe"]
["6.2. ",null,null,null,null,null,"kg / Jahr P2O5-Abgabe"]
["6.3. ",null,null,null,null,null,"kg / Jahr P2O5-Abgabe"]
["6.4. ",null,null,null,null,null,"kg / Jahr P2O5-Abgabe"]
["6.5.",null,null,null,"Summe",{"$f":"SUM(F21:F24)","v":0},"kg / Jahr P2O5-Abgabe"]
[]
["7.",null,null,"noch notwendige außerbetriebliche Verwertung",null,{"$f":"IF(ISNUMBER(F16),F16-F25,0)","v":0},"kg / Jahr P2O5"]
["8.",null,null,"Anteil der außerbetrieblichen Verwertung",null,{"$f":"IF(ISNUMBER(F14),F25/(F14),\" \")","v":" "}]
["9.",null,null,"reduzierter Viehbesatz",null,{"$f":"IFERROR(IF(F25>0,F8-((F25/F14)*F8),\" \"),0)","v":" "},"GVE je ha LNF"]
[]
["notwendige Anlagen:",null,null,null,null,null,"Datum, Unterschrift Antragsteller:"]
["-","Nachweis durch Ausdruck aus „NOG-Rechner“ (Link: https://www.landwirtschaftskammer.de/landwirtschaft/ackerbau/duengung/programme/nog/index.htm) , alternativ geeignete Berechnung des Phosphatanfalls gemäß Düngeverordnung Anlage 1"]
["-","Kopie/n der Lieferscheine"]
["-","Kopien Betriebsspiegel aus dem Meldeprogramm für Wirtschaftsdünger"]